bitfinex-derivatives/quotes_SOLF0:USTF0_20250211
["timestamp","ask_amount","ask_price","bid_price","bid_amount"]
[1739235699722,0.03803477,202.5,202.47,14.7827268]
[1739235700116,3.474,202.57,202.47,14.7827268]
[1739235700317,3.474,202.57,202.51,14.7827268]
[1739235700624,3.474,202.57,202.53,4.9366]
[1739235701218,3.474,202.57,202.55,4.9362]
[1739235701418,3.474,202.57,202.53,0.03513071]
[1739235703123,4.934,202.65,202.53,0.03513071]
[1739235703325,3.3744,202.67,202.53,0.03513071]
[1739235703623,4.9339,202.65,202.56,4.9358]
[1739235704119,3.3744,202.67,202.56,4.9358]
[1739235704323,4.9341,202.64,202.54,4.9363]
[1739235704624,3.3744,202.67,202.54,4.9363]
[1739235705023,4.9342,202.64,202.55,4.9362]
[1739235705624,3.3744,202.67,202.53,0.03513071]
[1739235705625,4.9337,202.66,202.57,4.9357]
[1739235705816,3.3744,202.67,202.53,0.03513071]
[1739235707320,4.9344,202.63,202.54,4.9364]
[1739235707620,14.7827268,202.66,202.53,0.03513071]
[1739235707825,14.7827268,202.66,202.47,14.7827268]
[1739235708522,18.9827268,202.62,202.43,14.7827268]
[1739235708920,4.9363,202.55,202.47,4.9382]
[1739235709117,1.7039137,202.54,202.49,0.03774845]
[1739235709519,6.6405137,202.54,202.49,0.03774845]
[1739235709722,1.7039137,202.54,202.49,0.03774845]
[1739235710824,1.7039137,202.54,202.45,9.21719526]
[1739235711322,4.9368,202.53,202.45,9.21719526]
[1739235711530,1.7039137,202.54,202.45,9.21719526]
[1739235711825,1.7039137,202.54,202.41,14.75040702]
[1739235712021,1.7039137,202.54,202.47,0.03196139]
[1739235712330,0.03653639,202.5,202.47,0.03196139]
[1739235713222,0.03653639,202.5,202.41,14.75040702]
[1739235713430,0.03653639,202.5,202.37,14.75040702]
[1739235713828,1.6667,202.54,202.37,14.75040702]
[1739235714228,0.90774482,202.53,202.36,4.9409]
[1739235714528,0.03675789,202.48,202.43,0.03260807]
[1739235714728,0.03675789,202.48,202.33,208.75040702]
[1739235714926,0.90774482,202.53,202.45,14.75040702]
[1739235715122,1.6667,202.54,202.51,14.75040702]
[1739235715820,1.7623,202.6,202.51,14.75040702]
[1739235716024,1.7253,202.59,202.51,14.75040702]
[1739235716329,0.03244508,202.58,202.53,0.03116004]
[1739235716828,0.03728979,202.58,202.53,0.0326421]
[1739235717027,4.97278979,202.58,202.53,0.0326421]
[1739235717628,0.03728979,202.58,202.53,0.0326421]
[1739235718623,0.03728979,202.58,202.55,4.9362]
[1739235718827,0.03728979,202.58,202.53,0.0326421]
[1739235719631,0.03728979,202.58,202.55,4.9363]
[1739235720235,0.03728979,202.58,202.53,0.0326421]
[1739235720732,1.76208979,202.58,202.53,0.0326421]
[1739235720934,1.76208979,202.58,202.55,4.936]
[1739235721133,1.76208979,202.58,202.53,0.0326421]
[1739235723335,1.76208979,202.58,202.53,4.9691421]
[1739235723535,1.76208979,202.58,202.53,0.0326421]
[1739235724533,6.69768979,202.58,202.53,0.0326421]
[1739235724733,1.76208979,202.58,202.53,0.0326421]
[1739235725231,1.76208979,202.58,202.47,14.75040702]
[1739235726542,1.76208979,202.58,202.5,0.03601729]
[1739235726938,6.69758979,202.58,202.5,0.03601729]
[1739235727441,1.76208979,202.58,202.5,0.03601729]
[1739235727940,14.75040702,202.73,202.55,14.75040702]
[1739235728135,1.6774,202.64,202.55,14.75040702]
[1739235728540,1.6774,202.64,202.61,4.9347]
[1739235728941,1.6774,202.64,202.59,4.935]
[1739235729239,1.6774,202.64,202.6,0.03365319]
[1739235729635,4.9343,202.63,202.6,0.03365319]
[1739235730141,1.6774,202.64,202.6,0.03365319]
[1739235732533,0.03240126,202.65,202.6,0.03365319]
[1739235733842,0.03240126,202.65,202.62,4.9345]
[1739235734142,0.03240126,202.65,202.6,0.03365319]
[1739235735042,0.03240126,202.65,202.63,14.75040702]
[1739235736549,0.03240126,202.65,202.6,0.03365319]
[1739235737044,0.03240126,202.65,202.62,4.9346]
[1739235737247,0.03240126,202.65,202.6,0.03365319]
[1739235737638,0.03240126,202.65,202.62,4.9344]
[1739235737843,0.03240126,202.65,202.6,0.03365319]
[1739235738450,0.03240126,202.65,202.64,4.9341]
[1739235739847,0.03240126,202.65,202.63,14.75040702]
[1739235740046,0.03240126,202.65,202.6,0.03365319]
[1739235740448,0.03240126,202.65,202.62,4.9345]
[1739235740648,0.03240126,202.65,202.6,0.03365319]
[1739235740949,3.5281,202.72,202.6,0.03365319]
[1739235740950,3.5281,202.72,202.63,14.75040702]
[1739235742050,0.03262,202.7,202.65,0.03402025]
[1739235744254,0.03262,202.7,202.65,4.96782025]
[1739235745154,0.03262,202.7,202.65,0.03402025]
[1739235745543,0.03262,202.7,202.66,4.9334]
[1739235745745,0.03262,202.7,202.65,0.03402025]
[1739235746553,0.03262,202.7,202.68,4.9331]
[1739235746751,0.03262,202.7,202.65,0.03402025]
[1739235746955,0.03262,202.7,202.69,4.9329]
[1739235747354,3.6169,202.79,202.67,9.19939354]
[1739235747655,3.6169,202.79,202.73,4.9319]
[1739235747958,3.6169,202.79,202.71,9.19939354]
[1739235748154,3.6169,202.79,202.69,4.9327]
[1739235748651,4.9314,202.75,202.72,0.03408679]
[1739235749158,0.03275454,202.76,202.72,0.03408679]
[1739235749856,4.9319,202.73,202.72,0.03408679]
[1739235750457,0.03275454,202.76,202.72,0.03408679]
[1739235750658,4.9316,202.74,202.72,0.03408679]
[1739235751060,0.03275454,202.76,202.72,0.03408679]
[1739235751961,0.03275454,202.76,202.72,4.96618679]
[1739235752557,4.9314,202.75,202.72,0.03408679]
[1739235752756,0.03275454,202.76,202.72,0.03408679]
[1739235754260,0.03275454,202.76,202.72,4.96618679]
[1739235755163,0.03275454,202.76,202.73,4.9318]
[1739235755363,0.03275454,202.76,202.72,0.03408679]
[1739235755567,0.03275454,202.76,202.74,9.19939354]
[1739235756160,0.03275454,202.76,202.75,4.9314]
[1739235756358,1.7441,202.84,202.74,9.19939354]
[1739235756665,4.9297,202.82,202.74,9.19939354]
[1739235757068,1.7441,202.84,202.74,9.19939354]
[1739235757266,4.9306,202.79,202.74,9.19939354]
[1739235757563,1.7441,202.84,202.77,0.03519563]
[1739235758470,4.9312,202.76,202.71,9.19939354]
[1739235759363,4.9302,202.81,202.71,9.19939354]
[1739235759570,0.0321994,202.76,202.71,0.03709114]
[1739235759769,0.0321994,202.76,202.68,9.19939354]
[1739235759964,4.9314,202.75,202.68,14.13249354]
[1739235760169,0.0321994,202.76,202.71,0.03409572]
[1739235761173,4.9635994,202.76,202.71,0.03409572]
[1739235762671,4.9314,202.75,202.71,0.03409572]
[1739235763270,0.0321994,202.76,202.71,0.03409572]
[1739235764063,0.0321994,202.76,202.71,9.23348926]
[1739235764670,0.0321994,202.76,202.74,9.19939354]
[1739235765373,0.0321994,202.76,202.75,4.9314]
[1739235766075,0.0321994,202.76,202.71,9.23348926]
[1739235766669,4.9314,202.75,202.71,9.23348926]
[1739235766965,4.9314,202.75,202.71,0.03409572]
[1739235767169,4.9317,202.74,202.71,0.03409572]
[1739235769674,3.6095,202.75,202.71,0.03409572]
[1739235769873,4.9319,202.73,202.71,0.03409572]
[1739235770875,3.6095,202.75,202.71,0.03409572]
[1739235771077,4.9321,202.72,202.71,0.03409572]
[1739235773477,0.0321994,202.76,202.71,9.23348926]
[1739235773679,0.0321994,202.76,202.74,9.19939354]
[1739235774470,0.0321994,202.76,202.71,9.23348926]
[1739235775676,4.9635994,202.76,202.71,14.16578926]
[1739235775870,4.9635994,202.76,202.71,4.96639572]
[1739235776069,0.0321994,202.76,202.71,0.03409572]
[1739235776672,4.9322,202.72,202.64,4.9341]
[1739235776877,1.7152,202.71,202.64,4.9341]
[1739235777177,1.7152,202.71,202.62,9.19939354]
[1739235777583,1.7152,202.71,202.65,9.19939354]
[1739235777778,0.03761082,202.69,202.65,9.19939354]
[1739235777985,0.03761082,202.69,202.68,4.9329]
[1739235778184,0.03761082,202.69,202.65,9.19939354]
[1739235779887,0.03761082,202.69,202.67,4.9332]
[1739235780082,0.03761082,202.69,202.65,9.19939354]
[1739235780284,0.03761082,202.69,202.65,14.13319354]
[1739235780479,0.03761082,202.69,202.65,4.9338]
[1739235780688,0.03761082,202.69,202.64,0.03242594]
[1739235780883,4.9336,202.67,202.64,0.03242594]
[1739235781084,0.03761082,202.69,202.64,0.03242594]
[1739235782882,4.9331,202.68,202.64,0.03242594]
[1739235783288,4.9335,202.67,202.64,0.03242594]
[1739235783583,0.03761082,202.69,202.64,0.03242594]
[1739235783788,4.9335,202.67,202.64,0.03242594]
[1739235783987,0.03761082,202.69,202.64,0.03242594]
[1739235784489,0.03761082,202.69,202.64,4.96642594]
[1739235785288,4.97071082,202.69,202.64,4.96642594]
[1739235785490,0.03761082,202.69,202.64,0.03242594]
[1739235787186,9.19939354,202.65,202.5,9.19939354]
[1739235787391,9.19939354,202.62,202.48,27.17523381]
[1739235787588,3.656,202.61,202.48,27.17523381]
[1739235788289,0.03323025,202.57,202.52,0.03585204]
[1739235788788,4.9361,202.56,202.52,0.03585204]
[1739235789089,0.03323025,202.57,202.52,0.03585204]
[1739235789485,4.9367,202.53,202.52,0.03585204]
[1739235789682,0.03323025,202.57,202.52,0.03585204]
[1739235790090,0.03323025,202.57,202.53,4.9367]
[1739235790388,0.03323025,202.57,202.52,0.03585204]
[1739235790585,0.03323025,202.57,202.55,4.9361]
[1739235790791,0.03323025,202.57,202.52,0.03585204]
[1739235791290,0.03323025,202.57,202.53,4.9366]
[1739235791692,0.03323025,202.57,202.54,4.9365]
[1739235792188,0.03323025,202.57,202.52,0.03585204]
[1739235792393,0.03323025,202.57,202.54,4.9363]
[1739235792596,0.03323025,202.57,202.52,0.03585204]
[1739235793094,0.03323025,202.57,202.56,4.936]
[1739235796095,1.7607,202.64,202.54,9.19939354]
[1739235796096,9.19939354,202.68,202.54,9.19939354]
[1739235796298,4.9341,202.65,202.6,4.935]
[1739235796594,3.6714,202.7,202.57,9.19939354]
[1739235796790,8.6041,202.7,202.64,4.9338]
[1739235797198,3.6714,202.7,202.64,4.9338]
[1739235797398,4.96550761,202.69,202.65,0.03519694]
[1739235797696,0.03240761,202.69,202.65,0.03519694]
[1739235798806,4.96530761,202.69,202.65,0.03519694]
[1739235799208,0.03240761,202.69,202.65,0.03519694]
[1739235799806,4.96550761,202.69,202.65,0.03519694]
[1739235801003,0.03240761,202.69,202.65,0.03519694]
[1739235802007,4.9332,202.68,202.65,0.03519694]
[1739235802310,0.03240761,202.69,202.65,0.03519694]
[1739235803108,4.9333,202.67,202.65,0.03519694]
[1739235803303,0.03240761,202.69,202.65,0.03519694]
[1739235804808,4.9336,202.66,202.65,0.03519694]
[1739235805303,4.9335,202.67,202.6,4.935]
[1739235805507,0.03240761,202.69,202.6,4.935]
[1739235805708,0.03240761,202.69,202.57,9.19939354]
[1739235805903,0.03240761,202.69,202.6,9.19939354]
[1739235806111,0.03240761,202.69,202.67,4.9333]
[1739235806908,0.03240761,202.69,202.62,0.03777328]
[1739235808713,0.03240761,202.69,202.66,4.9334]
[1739235809411,0.03240761,202.69,202.62,0.03777328]
[1739235809611,0.03240761,202.69,202.68,4.9331]
[1739235811814,0.03240761,202.69,202.66,0.03550455]
[1739235812206,0.03240761,202.69,202.68,4.9331]
[1739235812914,0.03240761,202.69,202.66,4.96880455]
[1739235813114,0.03240761,202.69,202.66,0.03550455]
[1739235813510,0.03240761,202.69,202.66,4.96910455]
[1739235813710,0.03240761,202.69,202.66,0.03550455]
[1739235815116,0.03240761,202.69,202.67,4.9333]
[1739235815818,0.03240761,202.69,202.66,0.03550455]
[1739235816918,4.96540761,202.69,202.66,0.03550455]
[1739235817715,0.03240761,202.69,202.66,0.03550455]
[1739235818118,0.03240761,202.69,202.57,9.19939354]
[1739235818317,4.934,202.65,202.54,9.19939354]
[1739235818519,9.19939354,202.68,202.54,9.19939354]
[1739235818720,1.8208,202.67,202.54,9.19939354]
[1739235818923,4.9343,202.64,202.59,4.9351]
[1739235819220,1.8208,202.67,202.59,4.9351]
[1739235819415,0.03551668,202.64,202.59,4.9700282]
[1739235819812,0.03551668,202.64,202.61,4.9347]
[1739235820122,0.03551668,202.64,202.59,0.0349282]
[1739235820321,4.9345,202.63,202.59,0.0349282]
[1739235821221,14.13409354,202.62,202.59,0.0349282]
[1739235821419,9.19939354,202.62,202.46,6.79380845]
[1739235821616,9.19939354,202.59,202.45,203.19939354]
[1739235821925,14.13469354,202.59,202.5,4.9374]
[1739235822119,9.19939354,202.59,202.5,4.9374]
[1739235822719,0.03139856,202.57,202.52,0.03608514]
[1739235823221,4.96729856,202.57,202.52,0.03608514]
[1739235824025,0.03139856,202.57,202.52,0.03608514]
[1739235824725,4.9361,202.56,202.52,0.03608514]
[1739235824925,9.19939354,202.56,202.52,0.03608514]
[1739235825121,4.9375,202.5,202.42,4.9392]
[1739235825421,9.19939354,202.53,202.42,4.9392]
[1739235825624,9.19939354,202.53,202.39,9.19939354]
[1739235825927,4.9373,202.51,202.41,4.9395]
[1739235826120,4.9373,202.51,202.39,9.19939354]
[1739235826316,0.03686595,202.48,202.43,4.9391]
[1739235826521,0.03686595,202.48,202.44,0.03254549]
[1739235826920,0.03686595,202.48,202.45,4.9386]
[1739235827526,0.03686595,202.48,202.44,0.03254549]
[1739235828224,4.9383,202.47,202.44,0.03254549]
[1739235828426,0.03686595,202.48,202.44,0.03254549]
[1739235828928,4.9386,202.46,202.44,0.03254549]
[1739235830422,4.9394,202.42,202.35,4.941]
[1739235830721,10.98999354,202.47,202.31,1.4412]
[1739235830722,9.19939354,202.44,202.31,1.4412]
[1739235831029,9.19939354,202.44,202.3,9.19939354]
[1739235831528,0.03292786,202.39,202.35,0.03289702]
[1739235832220,4.9407,202.37,202.35,0.03289702]
[1739235832720,4.97332786,202.39,202.35,0.03289702]
[1739235833225,0.03292786,202.39,202.35,0.03289702]
[1739235834125,0.03292786,202.39,202.35,4.97389702]
[1739235834425,0.03292786,202.39,202.35,0.03289702]
[1739235834627,0.03292786,202.39,202.38,4.9404]
[1739235836624,2.786e-05,202.39,202.38,4.9404]
[1739235840926,1.9038,202.52,202.46,4.9382]
[1739235841525,1.9038,202.52,202.42,9.19939354]
[1739235842235,0.03248849,202.49,202.48,4.938]
[1739235846335,8.849e-05,202.49,202.48,4.938]
[1739235850537,8.849e-05,202.49,202.48,14.13739354]
[1739235851039,9.19939354,202.71,202.48,212.39878708]
[1739235851230,10.6863,202.7,202.57,9.19939354]
[1739235851433,5.7535,202.7,202.63,4.9343]
[1739235852038,0.03594263,202.69,202.64,0.03766796]
[1739235853141,4.263e-05,202.69,202.66,9.19939354]
[1739235853343,20.55342009,202.73,202.72,4.9321]
[1739235854340,3.5927,202.81,202.73,4.9317]
[1739235854545,0.03331631,202.75,202.73,4.9317]
[1739235854739,0.03331631,202.75,202.67,9.19939354]
[1739235854942,1.631e-05,202.75,202.74,4.9316]
[1739235855143,1.631e-05,202.75,202.72,0.03332199]
[1739235855144,3.5927,202.81,202.7,9.19939354]
[1739235855344,3.5927,202.81,202.74,9.19939354]
[1739235855745,3.5927,202.81,202.72,14.70310484]
[1739235856245,0.03120066,202.79,202.74,0.03654298]
[1739235858651,0.03120066,202.79,202.77,4.9308]
[1739235859849,0.03120066,202.79,202.78,4.9307]
[1739235860547,0.03120066,202.79,202.76,4.9309]
[1739235860753,0.03120066,202.79,202.74,0.03654298]
[1739235862053,0.03120066,202.79,202.78,4.9307]
[1739235863156,0.03120066,202.79,202.76,4.931]
[1739235863855,0.03120066,202.79,202.74,0.03654298]
[1739235864451,0.03120066,202.79,202.76,4.9309]
[1739235864755,0.03120066,202.79,202.74,0.03654298]
[1739235865150,0.03120066,202.79,202.75,4.9314]
[1739235865456,0.03120066,202.79,202.74,0.03654298]
[1739235865757,0.03120066,202.79,202.74,4.96794298]
[1739235866658,4.96180066,202.79,202.74,4.96794298]
[1739235866854,0.03120066,202.79,202.75,4.9314]
[1739235867450,0.03120066,202.79,202.74,0.03654298]
[1739235867652,4.96180066,202.79,202.74,4.96814298]
[1739235868062,0.03120066,202.79,202.74,0.03654298]
[1739235868257,0.03120066,202.79,202.76,4.9311]
[1739235869760,0.03120066,202.79,202.74,0.03654298]
[1739235870158,0.03120066,202.79,202.77,4.9307]
[1739235870462,0.03120066,202.79,202.74,0.03654298]
[1739235872263,0.03120066,202.79,202.78,4.9307]
[1739235872658,0.03120066,202.79,202.74,0.03654298]
[1739235873863,0.03120066,202.79,202.75,4.9313]
[1739235874066,0.03120066,202.79,202.74,0.03654298]
[1739235874560,0.03120066,202.79,202.77,4.9307]
[1739235874757,0.03120066,202.79,202.74,0.03654298]
[1739235875361,0.03120066,202.79,202.76,4.931]
[1739235876264,0.03120066,202.79,202.75,4.9313]
[1739235876462,0.03120066,202.79,202.74,0.03654298]
[1739235877263,0.03120066,202.79,202.76,4.931]
[1739235877470,0.03120066,202.79,202.74,0.03654298]
[1739235878466,4.9311,202.77,202.74,0.03654298]
[1739235878668,1.8369,202.76,202.67,9.196049]
[1739235879370,1.8369,202.76,202.73,4.9317]
[1739235879870,1.8369,202.76,202.74,4.9315]
[1739235880070,1.8369,202.76,202.72,0.03582276]
[1739235880663,1.8369,202.76,202.75,4.9314]
[1739235882272,0.03519118,202.77,202.76,4.9311]
[1739235882773,9.118e-05,202.77,202.76,14.127149]
[1739235885471,1.7751,202.85,202.78,4.9305]
[1739235885773,1.7751,202.85,202.76,9.196049]
[1739235886275,1.7751,202.85,202.82,4.9295]
[1739235886576,1.7751,202.85,202.81,0.03640645]
[1739235886774,1.7751,202.85,202.81,4.96610645]
[1739235886970,6.7042,202.85,202.81,4.96610645]
[1739235887172,1.7751,202.85,202.81,0.03640645]
[1739235887675,1.7751,202.85,202.82,4.9295]
[1739235887871,1.7751,202.85,202.81,0.03640645]
[1739235888779,1.7751,202.85,202.76,9.196049]
[1739235888972,1.7751,202.85,202.73,9.196049]
[1739235889168,4.9297,202.82,202.78,4.9306]
[1739235889377,1.7751,202.85,202.73,9.196049]
[1739235889676,6.7042,202.85,202.81,4.9298]
[1739235890077,6.7391601,202.85,202.81,4.9298]
[1739235890277,1.8100601,202.85,202.77,0.03553474]
[1739235890477,4.9292,202.84,202.8,4.9301]
[1739235891580,1.8100601,202.85,202.78,4.9306]
[1739235892079,4.9299,202.82,202.78,4.9306]
[1739235892378,1.8100601,202.85,202.77,4.96643474]
[1739235892579,4.9301,202.81,202.77,4.96643474]
[1739235893671,4.9297,202.82,202.78,4.9306]
[1739235894471,4.9295,202.83,202.79,4.9304]
[1739235895277,1.8100601,202.85,202.77,0.03553474]
[1739235896179,0.0349601,202.85,202.83,4.9292]
[1739235897181,0.0349601,202.85,202.82,0.03127246]
[1739235897876,4.9641601,202.85,202.82,0.03127246]
[1739235898284,0.0349601,202.85,202.82,0.03127246]
[1739235898585,4.9640601,202.85,202.82,0.03127246]
[1739235899385,0.0349601,202.85,202.82,0.03127246]
[1739235900682,0.0349601,202.85,202.83,4.9292]
[1739235901087,0.0349601,202.85,202.82,0.03127246]
[1739235901786,4.9294,202.83,202.82,0.03127246]
[1739235901982,0.0349601,202.85,202.76,9.196049]
[1739235902380,4.9299,202.82,202.78,4.9307]
[1739235902690,0.0349601,202.85,202.76,9.196049]
[1739235902888,4.9639601,202.85,202.79,4.9303]
[1739235903285,4.9639601,202.85,202.8,0.03398127]
[1739235903589,0.0349601,202.85,202.82,4.9297]
[1739235903884,0.0349601,202.85,202.8,0.03398127]
[1739235905289,4.9639601,202.85,202.8,4.96398127]
[1739235905588,0.0349601,202.85,202.8,0.03398127]
[1739235906389,4.9294,202.84,202.8,4.96418127]
[1739235906791,0.0349601,202.85,202.8,0.03398127]
[1739235906986,0.0349601,202.85,202.81,4.9297]
[1739235907289,0.0349601,202.85,202.8,0.03398127]
[1739235908894,4.9295,202.83,202.8,0.03398127]
[1739235909385,0.0349601,202.85,202.8,0.03398127]
[1739235909581,4.9298,202.82,202.8,0.03398127]
[1739235909786,0.0349601,202.85,202.8,0.03398127]
[1739235910287,4.9296,202.83,202.8,0.03398127]
[1739235911091,0.0349601,202.85,202.8,0.03398127]
[1739235912803,4.9298,202.82,202.8,0.03398127]
[1739235914298,5.91639096,202.85,202.8,0.03398127]
[1739235915897,4.9299,202.81,202.8,0.03398127]
[1739235916103,5.91639096,202.85,202.8,0.03398127]
[1739235916299,5.88143086,202.83,202.75,5.88143086]
[1739235916503,5.88143086,202.83,202.73,10.81323086]
[1739235916797,4.9305,202.79,202.73,5.88143086]
[1739235917004,5.88143086,202.83,202.75,10.81283086]
[1739235917198,5.88143086,202.81,202.73,5.88143086]
[1739235917404,3.92,202.84,202.71,5.88143086]
[1739235917405,5.88143086,202.79,202.71,5.88143086]
[1739235917599,4.9311,202.76,202.75,0.03745612]
[1739235918394,4.9311,202.76,202.71,5.88143086]
[1739235918603,4.9314,202.75,202.71,5.88143086]
[1739235919195,5.91732026,202.79,202.71,5.88143086]
[1739235919703,4.9312,202.76,202.73,0.03504315]
[1739235920603,5.91732026,202.79,202.73,0.03504315]
[1739235921505,0.0358894,202.79,202.75,5.88143086]
[1739235921706,0.0358894,202.79,202.77,5.88143086]
[1739235922810,0.0358894,202.79,202.78,4.9307]
[1739235923704,0.0358894,202.79,202.78,14.11623697]
[1739235928813,0.0358894,202.79,202.78,4.9307]
[1739235933113,0.0358894,202.79,202.75,9.18553697]
[1739235933313,0.0358894,202.79,202.76,4.9309]
[1739235933513,0.0358894,202.79,202.73,0.03504315]
[1739235933915,0.0358894,202.79,202.75,4.9314]
[1739235934114,4.9662894,202.79,202.75,4.9314]
[1739235934510,0.0358894,202.79,202.73,4.96684315]
[1739235934714,4.9307,202.78,202.73,4.96684315]
[1739235934915,0.0358894,202.79,202.73,4.96684315]
[1739235935119,0.0358894,202.79,202.73,0.03504315]
[1739235935812,4.9309,202.78,202.73,4.96684315]
[1739235936014,0.0358894,202.79,202.73,4.96684315]
[1739235936420,4.9309,202.78,202.73,4.96684315]
[1739235936921,0.0358894,202.79,202.73,0.03504315]
[1739235938016,0.0358894,202.79,202.77,4.9308]
[1739235938218,0.0358894,202.79,202.75,9.18553697]
[1739235938617,0.0358894,202.79,202.76,4.9309]
[1739235938820,0.0358894,202.79,202.75,9.18553697]
[1739235940022,0.0358894,202.79,202.77,4.9308]
[1739235940519,0.0358894,202.79,202.78,4.9307]
[1739235945632,0.0358894,202.79,202.78,10.81156293]
[1739235949428,0.0358894,202.79,202.78,5.88086293]
[1739235949629,0.0358894,202.79,202.77,4.9308]
[1739235950431,0.0358894,202.79,202.76,10.81196293]
[1739235950933,0.0358894,202.79,202.76,5.88086293]
[1739235951231,4.9664894,202.79,202.76,5.88086293]
[1739235952431,0.0358894,202.79,202.76,5.88086293]
[1739235952832,0.0358894,202.79,202.78,5.88086293]
[1739235953728,0.0358894,202.79,202.78,10.81156293]
[1739235955133,0.0358894,202.79,202.78,5.88086293]
[1739235955721,0.0358894,202.79,202.78,10.81156293]
[1739235958434,0.0358894,202.79,202.76,5.88086293]
[1739235959033,0.0358894,202.79,202.77,4.9309]
[1739235959835,0.0358894,202.79,202.76,10.81196293]
[1739235960236,0.0358894,202.79,202.76,5.88086293]
[1739235960932,0.0358894,202.79,202.74,5.88086293]
[1739235962138,4.9663894,202.79,202.74,10.81226293]
[1739235962434,0.0358894,202.79,202.74,5.88086293]
[1739235962636,0.0358894,202.79,202.77,4.9308]
[1739235964429,0.0358894,202.79,202.76,5.88086293]
[1739235965040,0.0358894,202.79,202.77,4.9309]
[1739235965229,0.0358894,202.79,202.76,5.88086293]
[1739235967340,0.0358894,202.79,202.77,4.9309]
[1739235967541,0.0358894,202.79,202.76,5.88086293]
[1739235967843,0.0358894,202.79,202.77,4.9309]
[1739235968037,0.0358894,202.79,202.76,5.88086293]
[1739235968541,0.0358894,202.79,202.76,10.81196293]
[1739235969839,0.0358894,202.79,202.76,5.88086293]
[1739235970044,0.0358894,202.79,202.77,4.9308]
[1739235973038,0.0358894,202.79,202.76,10.81196293]
[1739235973244,0.0358894,202.79,202.76,5.88086293]
[1739235973438,0.0358894,202.79,202.74,5.88086293]
[1739235974545,0.0358894,202.79,202.75,4.9314]
[1739235975042,4.9663894,202.79,202.74,10.81246293]
[1739235976045,4.9663894,202.79,202.74,5.88086293]
[1739235976240,4.9663894,202.79,202.75,4.9314]
[1739235976437,0.0358894,202.79,202.75,4.9314]
[1739235977148,4.9663894,202.79,202.74,10.81246293]
[1739235977342,4.9663894,202.79,202.74,4.9316]
[1739235977743,0.0358894,202.79,202.73,0.03504315]
[1739235977943,0.0358894,202.79,202.75,4.9314]
[1739235978340,0.0358894,202.79,202.74,5.88086293]
[1739235978541,0.0358894,202.79,202.76,4.9311]
[1739235978842,0.0358894,202.79,202.76,5.88086293]
[1739235979239,0.0358894,202.79,202.78,4.9307]
[1739235979640,0.0358894,202.79,202.78,10.81156293]
[1739235983350,0.0358894,202.79,202.78,5.88086293]
[1739235984245,5.88086293,202.88,202.78,5.88086293]
[1739235984446,5.88086293,202.88,202.8,5.88086293]
[1739235984746,5.88086293,202.88,202.81,4.9299]
[1739235985252,5.88086293,202.88,202.8,5.88086293]
[1739235985446,0.03412897,202.87,202.82,0.03357476]
[1739235986550,5.88086293,202.86,202.82,0.03357476]
[1739235986853,5.88086293,202.84,202.76,5.88086293]
[1739235987058,3.8221,202.83,202.76,5.88086293]
[1739235987655,3.8221,202.83,202.77,4.9309]
[1739235987957,0.03361395,202.82,202.77,0.03220491]
[1739235988353,5.91447688,202.82,202.77,0.03220491]
[1739235989450,5.91447688,202.82,202.77,4.96310491]
[1739235989851,5.91447688,202.82,202.77,0.03220491]
[1739235990060,5.91447688,202.82,202.8,4.9301]
[1739235990260,0.03361395,202.82,202.77,0.03220491]
[1739235990561,0.03361395,202.82,202.78,4.9305]
[1739235990860,0.03361395,202.82,202.77,0.03220491]
[1739235991163,0.03361395,202.82,202.79,4.9304]
[1739235991356,5.91447688,202.82,202.77,0.03220491]
[1739235991952,7.69487688,202.82,202.77,0.03220491]
[1739235992762,12.62467688,202.82,202.77,4.96310491]
[1739235993158,7.69487688,202.82,202.77,0.03220491]
[1739235993363,12.62457688,202.82,202.78,4.9305]
[1739235994260,7.69487688,202.82,202.8,4.9301]
[1739235994562,1.81401395,202.82,202.77,0.03220491]
[1739235995765,1.81401395,202.82,202.81,4.9299]
[1739235996760,0.03361395,202.82,202.81,4.9299]
[1739236014175,5.88086293,202.94,202.91,4.9275]
[1739236014374,7.73176293,202.94,202.86,5.88086293]
[1739236015270,5.88086293,202.92,202.89,4.9279]
[1739236015477,5.91224033,202.92,202.89,4.9279]
[1739236017477,5.91224033,202.92,202.88,0.03688045]
[1739236017677,5.91224033,202.92,202.91,4.9275]
[1739236018476,5.91224033,202.92,202.89,4.9279]
[1739236021377,5.91224033,202.92,202.88,0.03688045]
[1739236021579,10.83954033,202.92,202.88,0.03688045]
[1739236022278,5.91224033,202.92,202.88,0.03688045]
[1739236022475,5.91224033,202.92,202.89,4.9279]
[1739236022675,5.91224033,202.92,202.88,0.03688045]
[1739236023479,5.88086293,202.9,202.88,0.03688045]
[1739236023775,5.88086293,202.9,202.82,5.88086293]